bitfinex/quotes_SOLUSD_20250710
["timestamp","ask_amount","ask_price","bid_price","bid_amount"]
[1752168782083,17.44468397,159.29,159.21,59.49]
[1752168782314,9.9155945,159.25,159.22,33.49]
[1752168782490,9.9155945,159.3,159.23,33.49]
[1752168782491,10.5755945,159.3,159.23,33.49]
[1752168782691,9.9155945,159.26,159.24,59.49]
[1752168783016,0.66,159.3,159.25,33.49]
[1752168783194,9.9155945,159.26,159.25,33.49]
[1752168783603,16.78468397,159.32,159.28,26.0]
[1752168783804,0.66,159.34,159.29,33.51]
[1752168783986,9.9155945,159.3,159.29,33.51]
[1752168784895,9.9155945,159.31,159.29,33.51]
[1752168785095,9.9155945,159.3,159.29,33.51]
[1752168785695,9.9155945,159.3,159.29,32.8]
[1752168786517,10.5755945,159.3,159.29,32.8]
[1752168786818,9.9155945,159.3,159.29,32.8]
[1752168786995,9.9155945,159.3,159.26,0.71]
[1752168787197,0.66,159.32,159.29,26.0]
[1752168787407,0.66,159.32,159.3,32.78]
[1752168788306,9.9155945,159.31,159.3,32.78]
[1752168788513,10.5755945,159.31,159.3,32.78]
[1752168790320,10.5755945,159.31,159.3,32.81]
[1752168790895,10.5755945,159.31,159.3,0.03]
[1752168791120,10.5755945,159.31,159.3,32.79]
[1752168792207,9.9155945,159.31,159.3,32.79]
[1752168793315,10.5755945,159.31,159.3,32.79]
[1752168794024,9.9155945,159.31,159.3,32.79]
[1752168794409,27.69460161,159.31,159.3,32.79]
[1752168794618,16.78468397,159.3,159.23,0.66]
[1752168794915,27.41027847,159.3,159.24,32.82]
[1752168795124,9.9155945,159.25,159.24,32.82]
[1752168795302,0.71,159.32,159.24,59.48]
[1752168795620,16.78468397,159.33,159.27,26.0]
[1752168795819,17.49468397,159.33,159.28,32.84]
[1752168796001,17.49468397,159.33,159.28,33.5]
[1752168796207,0.71,159.33,159.29,0.66]
[1752168796415,0.71,159.32,159.3,32.84]
[1752168796792,0.28432314,159.35,159.3,32.84]
[1752168797000,9.9155945,159.31,159.3,32.84]
[1752168798097,9.9155945,159.31,159.3,33.5]
[1752168798907,16.78468397,159.36,159.33,26.0]
[1752168799101,16.78468397,159.36,159.34,32.8]
[1752168799717,0.99432314,159.35,159.29,26.66]
[1752168799927,0.99432314,159.35,159.3,32.8]
[1752168800106,9.9155945,159.31,159.3,32.8]
[1752168800716,37.32587297,159.31,159.3,1.36]
[1752168800926,37.32587297,159.31,159.25,0.66]
[1752168800927,37.61019611,159.31,159.25,0.66]
[1752168801102,9.9155945,159.26,159.25,0.66]
[1752168801620,35.9155945,159.3,159.25,0.66]
[1752168801823,26.0,159.3,159.25,0.66]
[1752168802015,9.9155945,159.28,159.25,0.66]
[1752168802206,9.9155945,159.28,159.26,32.8]
[1752168802408,9.9155945,159.3,159.27,0.66]
[1752168805721,9.9155945,159.31,159.27,0.66]
[1752168806121,9.9155945,159.3,159.27,0.66]
[1752168806322,0.71,159.37,159.29,1.656]
[1752168806527,0.71,159.37,159.3,33.42]
[1752168806731,9.9155945,159.32,159.31,0.66]
[1752168807022,10.6255945,159.32,159.31,89.0]
[1752168807207,10.6255945,159.32,159.31,32.78]
[1752168808122,9.9155945,159.32,159.27,89.66]
[1752168808321,9.9155945,159.28,159.27,89.0]
[1752168808526,9.9155945,159.28,159.25,90.6189]
[1752168808750,9.9155945,159.26,159.25,89.0]
[1752168809041,9.9155945,159.26,159.25,121.78]
[1752168809538,9.9155945,159.26,159.24,116.08]
[1752168809711,9.9155945,159.25,159.24,116.08]
[1752168810234,9.9155945,159.25,159.24,59.86]
[1752168810934,0.71,159.29,159.24,60.52]
[1752168811112,9.9155945,159.25,159.24,59.86]
[1752168811312,35.9155945,159.3,159.24,59.86]
[1752168811539,9.9155945,159.26,159.24,59.86]
[1752168811728,26.0,159.3,159.25,0.66]
[1752168811925,9.9155945,159.26,159.24,27.11]
[1752168812119,35.9755945,159.3,159.25,32.78]
[1752168812342,9.9155945,159.26,159.25,32.78]
[1752168812637,9.9155945,159.26,159.25,32.76]
[1752168814517,9.9155945,159.26,159.25,33.42]
[1752168814716,9.9155945,159.26,159.25,32.76]
[1752168817019,9.9155945,159.26,159.25,33.42]
[1752168817219,9.9155945,159.26,159.24,27.11]
[1752168817516,9.9155945,159.25,159.24,27.77]
[1752168817717,9.9155945,159.25,159.24,60.49]
[1752168819562,0.06,159.3,159.24,60.49]
[1752168819724,9.9155945,159.27,159.25,0.66]
[1752168819924,9.9155945,159.27,159.26,32.7]
[1752168820356,9.9155945,159.27,159.26,33.36]
[1752168821132,9.9155945,159.28,159.26,33.36]
[1752168821317,9.9155945,159.28,159.27,0.66]
[1752168823847,9.9155945,159.28,159.26,121.7]
[1752168824145,9.9155945,159.27,159.26,122.36]
[1752168824647,0.06,159.3,159.26,122.36]
[1752168824827,9.9155945,159.27,159.26,122.36]
[1752168826527,9.9155945,159.28,159.26,122.36]
[1752168826739,9.9155945,159.28,159.27,0.69]
[1752168827258,0.06,159.3,159.29,26.0]
[1752168827427,0.06,159.3,159.29,59.33]
[1752168827927,9.9755945,159.3,159.29,58.64]
[1752168828351,9.9755945,159.3,159.29,32.64]
[1752168828538,10.6855945,159.3,159.29,32.64]
[1752168828839,9.9755945,159.3,159.29,32.64]
[1752168829034,0.06,159.3,159.29,33.33]
[1752168829351,9.9755945,159.3,159.29,33.33]
[1752168830053,0.06,159.3,159.29,33.33]
[1752168830553,0.06,159.3,159.29,122.33]
[1752168830930,0.06,159.3,159.29,33.33]
[1752168834235,9.9755945,159.3,159.29,33.33]
[1752168834430,9.9155945,159.3,159.29,33.33]
[1752168834631,0.71,159.35,159.32,26.0]
[1752168834834,0.71,159.35,159.33,32.62]
[1752168835051,0.71,159.34,159.33,32.62]
[1752168835439,0.71,159.34,159.3,26.0]
[1752168835638,0.14216157,159.38,159.31,32.62]
[1752168835853,0.78433833,159.37,159.31,32.62]
[1752168836157,9.9155945,159.32,159.28,0.69]
[1752168836334,9.9155945,159.29,159.28,89.0]
[1752168836642,0.71,159.34,159.31,26.0]
[1752168836847,0.71,159.34,159.32,32.62]
[1752168837058,0.71,159.33,159.32,32.62]
[1752168838053,10.6255945,159.33,159.32,32.62]
[1752168838446,10.6255945,159.33,159.31,26.0]
[1752168838648,10.6255945,159.32,159.25,89.03]
[1752168838854,9.9155945,159.26,159.25,89.03]
[1752168839048,9.9155945,159.26,159.25,0.03]
[1752168839361,2.59665838,159.33,159.28,26.0]
[1752168839362,0.71,159.31,159.28,26.0]
[1752168839532,0.71,159.3,159.29,32.62]
[1752168840657,10.6255945,159.3,159.29,32.62]
[1752168840854,9.9155945,159.3,159.29,32.62]
[1752168841055,0.71,159.34,159.29,33.31]
[1752168841262,0.71,159.34,159.3,0.69]
[1752168841449,0.71,159.36,159.31,33.31]
[1752168841657,9.9155945,159.32,159.31,33.31]
[1752168841849,9.9155945,159.32,159.31,26.0]
[1752168841850,10.6255945,159.32,159.31,26.0]
[1752168842158,10.6255945,159.32,159.31,58.62]
[1752168842655,10.6255945,159.32,159.31,32.62]
[1752168843358,27.69460161,159.32,159.28,89.0]
[1752168843565,9.9155945,159.29,159.28,89.0]
[1752168843787,9.9155945,159.29,159.28,121.62]
[1752168844070,0.71,159.34,159.28,122.31]
[1752168844256,9.9155945,159.29,159.28,122.31]
[1752168844963,9.9155945,159.29,159.28,121.62]
[1752168845660,9.9155945,159.29,159.28,32.62]
[1752168845860,10.6255945,159.29,159.26,115.0]
[1752168846165,9.9155945,159.27,159.26,26.0]
[1752168846340,9.9155945,159.27,159.26,58.62]
[1752168846541,9.9155945,159.27,159.26,26.0]
[1752168846853,9.9155945,159.27,159.26,26.69]
[1752168847064,9.9155945,159.27,159.26,59.31]
[1752168848467,0.71,159.29,159.26,58.62]
[1752168848777,9.9155945,159.27,159.26,26.0]
[1752168848941,9.9155945,159.27,159.26,58.62]
[1752168849140,9.9155945,159.27,159.26,32.62]
[1752168849667,7.032,159.31,159.26,33.31]
[1752168849958,9.9155945,159.27,159.25,89.03]
[1752168850160,9.9155945,159.26,159.25,0.03]
[1752168850346,9.9155945,159.26,159.25,32.65]
[1752168851141,9.9155945,159.26,159.25,0.03]
[1752168851559,9.9155945,159.26,159.25,32.65]
[1752168851741,0.71,159.28,159.25,32.65]
[1752168851938,9.9155945,159.26,159.25,32.65]
[1752168852665,9.9155945,159.26,159.25,33.34]
[1752168852872,5.95445679,159.26,159.25,33.34]
[1752168853877,5.95445679,159.27,159.25,33.34]
[1752168854053,5.95445679,159.27,159.26,0.69]
[1752168854454,5.95445679,159.27,159.26,89.69]
[1752168855468,5.95445679,159.27,159.26,115.69]
[1752168857971,0.06,159.3,159.29,26.0]
[1752168858163,6.01445679,159.3,159.29,58.62]
[1752168858808,6.01445679,159.3,159.29,59.3]
[1752168860585,0.06,159.3,159.29,59.3]
[1752168860777,6.01445679,159.3,159.29,59.3]
[1752168860976,6.01445679,159.3,159.29,58.62]
[1752168862584,6.71445679,159.3,159.29,26.0]
[1752168862778,6.01445679,159.3,159.29,58.62]
[1752168863479,6.71445679,159.3,159.29,32.62]
[1752168865176,6.71445679,159.3,159.26,26.0]
[1752168865486,5.95445679,159.27,159.26,26.0]
[1752168865679,5.95445679,159.27,159.26,58.62]
[1752168867681,5.95445679,159.27,159.26,26.0]
[1752168867880,5.95445679,159.28,159.26,58.62]
[1752168868186,5.95445679,159.27,159.26,58.62]
[1752168868687,0.06,159.3,159.26,58.62]
[1752168868980,5.95445679,159.28,159.27,0.68]
[1752168869572,5.95445679,159.28,159.27,33.3]
[1752168872390,5.95445679,159.28,159.27,32.62]
[1752168873205,5.95445679,159.28,159.27,33.3]
[1752168874197,0.06,159.3,159.27,33.3]
[1752168874502,5.95445679,159.28,159.27,33.3]
[1752168876308,5.95445679,159.28,159.27,32.62]
[1752168876607,5.95445679,159.28,159.27,33.3]
[1752168876902,5.95445679,159.29,159.27,33.3]
[1752168877203,5.95445679,159.29,159.28,0.68]
[1752168877876,0.06,159.3,159.28,0.68]
[1752168878086,5.95445679,159.29,159.28,26.0]
[1752168878285,0.06,159.3,159.28,58.62]
[1752168878490,0.06,159.3,159.28,147.62]
[1752168878691,0.06,159.3,159.29,0.68]
[1752168879590,0.06,159.3,159.29,89.68]
[1752168879791,0.06,159.3,159.29,91.3182]
[1752168880205,5.95445679,159.33,159.32,26.0]
[1752168880505,6.1041,159.39,159.32,58.62]
[1752168880506,0.28432314,159.38,159.32,58.62]
[1752168880708,5.95445679,159.33,159.32,58.62]
[1752168881013,5.95445679,159.33,159.32,59.3]
[1752168882802,5.95445679,159.33,159.32,58.62]
[1752168883100,6.65445679,159.36,159.32,58.62]
[1752168883304,5.95445679,159.33,159.32,58.62]
[1752168884106,0.7,159.35,159.32,58.62]
[1752168884407,5.95445679,159.33,159.32,58.62]
[1752168884606,5.95445679,159.33,159.32,59.29]
[1752168886211,5.95445679,159.33,159.32,58.62]
[1752168887017,5.95445679,159.33,159.32,59.29]
[1752168890805,5.95445679,159.34,159.32,59.29]
[1752168891003,5.95445679,159.34,159.33,0.67]
[1752168891733,6.67445679,159.34,159.32,26.0]
[1752168892017,0.72,159.34,159.33,32.6]
[1752168893204,5.95445679,159.34,159.33,32.6]
[1752168893406,5.95445679,159.34,159.33,33.27]
[1752168893915,6.1041,159.39,159.33,33.27]
[1752168894213,0.06,159.39,159.34,0.67]
[1752168894413,5.95445679,159.36,159.35,32.6]
[1752168894627,5.95445679,159.36,159.35,33.27]
[1752168895414,0.06,159.39,159.35,33.27]
[1752168895608,5.95445679,159.36,159.35,32.6]
[1752168896206,5.95445679,159.36,159.35,33.27]
[1752168897822,5.95445679,159.36,159.35,32.6]
[1752168898025,0.72,159.38,159.35,32.6]
[1752168898230,5.95445679,159.36,159.35,32.6]
[1752168899620,5.95445679,159.36,159.35,33.27]
[1752168900827,5.95445679,159.36,159.35,32.6]
[1752168901125,5.95445679,159.36,159.35,33.27]
[1752168901425,5.95445679,159.36,159.35,32.6]
[1752168902200,5.95445679,159.36,159.35,33.27]
[1752168902594,5.95445679,159.36,159.35,32.6]
[1752168902800,5.95445679,159.36,159.35,33.27]
[1752168903015,0.06,159.39,159.35,33.27]
[1752168903016,5.95445679,159.37,159.35,59.27]
[1752168903333,0.06,159.39,159.36,0.67]
[1752168903525,0.06,159.39,159.37,32.58]
[1752168903716,0.72,159.4,159.37,32.58]
[1752168904512,5.95445679,159.38,159.37,32.58]
[1752168905533,5.95445679,159.38,159.37,33.25]
[1752168905907,5.95445679,159.38,159.37,32.58]
[1752168906412,7.2063,159.43,159.37,33.25]
[1752168906617,5.95445679,159.38,159.37,33.25]
[1752168908821,5.95445679,159.38,159.37,32.58]
[1752168909420,6.67445679,159.38,159.37,32.58]
[1752168909633,6.67445679,159.38,159.33,0.67]
[1752168909928,5.95445679,159.34,159.32,27.06]
[1752168910132,6.67445679,159.36,159.33,32.58]
[1752168911223,5.95445679,159.34,159.33,32.58]
[1752168912430,5.95445679,159.34,159.33,33.25]
[1752168912831,5.95445679,159.34,159.33,0.67]
[1752168913046,5.95445679,159.34,159.33,33.25]
[1752168913431,5.95445679,159.35,159.33,59.25]
[1752168913741,5.95445679,159.35,159.33,26.0]
[1752168913742,0.72,159.35,159.33,26.0]
[1752168913923,5.95445679,159.34,159.33,26.0]
[1752168914121,5.95445679,159.34,159.33,58.58]
[1752168915234,5.95445679,159.34,159.28,89.0]
[1752168915235,6.61445679,159.34,159.29,0.72]
[1752168915541,5.95445679,159.3,159.28,89.0]
[1752168915718,0.66,159.32,159.26,166.78]
[1752168915918,5.95445679,159.27,159.26,77.06]
[1752168916122,6.61445679,159.27,159.26,77.06]
[1752168916314,6.61445679,159.27,159.26,109.64]
[1752168916623,0.42648471,159.26,159.19,0.72]
[1752168916822,1.44492935,159.25,159.2,32.58]
[1752168917128,6.61445679,159.28,159.23,26.0]
[1752168917430,6.61445679,159.28,159.24,33.3]
[1752168917629,6.61445679,159.28,159.18,27.06]
[1752168917630,6.29062314,159.3,159.25,33.3]
[1752168917833,6.29062314,159.3,159.26,0.72]
[1752168917834,0.66,159.3,159.26,0.72]
[1752168918032,0.66,159.3,159.27,32.58]
[1752168918619,5.95445679,159.28,159.27,32.58]
[1752168918817,5.95445679,159.3,159.27,32.58]
[1752168919016,6.7029,159.34,159.27,32.58]
[1752168919221,5.95445679,159.29,159.27,33.3]
[1752168919433,5.95445679,159.29,159.28,0.72]
[1752168919616,0.66,159.33,159.28,0.72]
[1752168919828,5.95445679,159.29,159.26,26.72]
[1752168920029,5.95445679,159.29,159.27,33.3]
[1752168920223,5.95445679,159.28,159.27,32.58]
[1752168920724,6.61445679,159.28,159.27,32.58]
[1752168920923,0.66,159.3,159.27,32.58]
[1752168921246,5.95445679,159.28,159.25,0.72]
[1752168921435,0.66,159.3,159.26,32.58]
[1752168921629,5.95445679,159.27,159.26,32.58]
[1752168922544,5.95445679,159.27,159.26,33.3]
[1752168923060,5.95445679,159.27,159.26,33.55]
[1752168923645,0.66,159.32,159.26,33.55]
[1752168923949,5.95445679,159.27,159.26,33.55]
[1752168924553,5.95445679,159.27,159.26,32.83]
[1752168925830,0.80216157,159.32,159.26,33.55]
[1752168926029,0.66,159.32,159.26,33.55]
[1752168926225,5.95445679,159.27,159.26,33.55]
[1752168926538,5.95445679,159.28,159.27,0.72]
[1752168926847,5.95445679,159.28,159.26,58.83]
[1752168927153,5.95445679,159.27,159.26,59.55]
[1752168927725,5.95445679,159.27,159.26,58.83]
[1752168928041,5.95445679,159.27,159.26,32.83]
[1752168928238,5.95445679,159.27,159.24,89.0]
[1752168928453,5.95445679,159.25,159.21,0.72]
[1752168928652,5.95445679,159.22,159.21,0.72]
[1752168928833,5.95445679,159.22,159.21,32.58]
[1752168929340,5.95445679,159.22,159.2,89.0]
[1752168929661,5.95445679,159.21,159.2,89.72]
[1752168929825,5.95445679,159.21,159.2,32.58]
[1752168930025,5.95445679,159.21,159.18,116.78]
[1752168930233,5.95445679,159.19,159.18,116.06]
[1752168930660,5.95445679,159.19,159.18,174.64]
[1752168930823,5.95445679,159.19,159.18,175.36]
[1752168931429,5.95445679,159.19,159.18,116.78]
[1752168931630,5.95445679,159.19,159.18,142.78]
[1752168931930,5.95445679,159.19,159.18,175.36]
[1752168933058,5.95445679,159.19,159.18,116.06]
[1752168933351,5.95445679,159.19,159.18,148.64]
[1752168933926,5.95445679,159.19,159.18,53.06]
[1752168934129,5.95445679,159.19,159.18,85.64]
[1752168935037,5.95445679,159.19,159.18,53.06]
[1752168935250,5.95445679,159.19,159.18,27.06]
[1752168935251,6.89877993,159.19,159.18,27.06]
[1752168935437,0.7852252,159.19,159.18,59.64]
[1752168935638,5.95445679,159.19,159.18,59.64]
[1752168935839,0.66,159.21,159.18,59.64]
[1752168936047,5.95445679,159.19,159.18,59.64]
[1752168937552,6.61445679,159.19,159.18,59.64]
[1752168937945,5.95445679,159.19,159.18,59.64]
[1752168939134,6.61445679,159.19,159.18,59.64]
[1752168939653,6.89877993,159.19,159.18,59.64]
[1752168939856,7.68400513,159.19,159.18,27.06]
[1752168940161,7.68400513,159.19,159.18,59.66]
[1752168941043,7.8261667,159.19,159.18,27.06]
[1752168941243,7.8261667,159.19,159.18,59.66]
[1752168941766,7.68400513,159.19,159.18,59.66]
[1752168944370,7.8261667,159.19,159.18,59.66]
[1752168944572,0.28432314,159.18,159.14,0.2]
[1752168944873,5.95445679,159.15,159.14,0.2]
[1752168946066,5.95445679,159.15,159.14,32.8]
[1752168947170,5.95445679,159.17,159.14,33.46]
[1752168947346,5.95445679,159.17,159.15,0.66]
[1752168947543,0.78512656,159.21,159.16,32.6]
[1752168947745,5.95445679,159.18,159.17,0.66]
[1752168947970,6.91877993,159.18,159.17,32.6]
[1752168949262,7.0609415,159.18,159.14,0.2]
[1752168949451,5.95445679,159.15,159.14,0.2]
[1752168950253,6.63445679,159.15,159.14,0.2]
[1752168950575,6.63445679,159.15,159.14,32.8]
[1752168950960,6.63445679,159.15,159.14,0.2]
[1752168951369,6.63445679,159.15,159.14,32.8]
[1752168952079,12.73107515,159.15,159.13,0.3]
[1752168952287,33.98882314,159.17,159.14,32.6]
[1752168952288,1.06969634,159.16,159.14,32.6]
[1752168952454,5.95445679,159.15,159.14,32.6]
[1752168952653,5.95445679,159.15,159.14,33.26]
[1752168957081,5.95445679,159.16,159.14,33.26]
[1752168957264,5.95445679,159.18,159.15,0.66]
[1752168957461,5.95445679,159.2,159.15,0.66]
[1752168958067,5.95445679,159.2,159.17,26.0]
[1752168958270,5.95445679,159.2,159.18,33.26]
[1752168958473,7.41968199,159.19,159.13,0.96]
[1752168958681,1.74954834,159.19,159.14,32.6]
[1752168958870,0.68,159.18,159.14,33.26]
[1752168959567,0.78532386,159.17,159.14,32.6]
[1752168959771,1.46532386,159.17,159.15,0.08]
[1752168959972,5.95445679,159.16,159.15,0.08]
[1752168960664,1.4652252,159.19,159.15,0.74]
[1752168960864,5.95445679,159.16,159.15,0.74]
[1752168961074,0.7852252,159.19,159.15,0.08]
[1752168961395,5.95445679,159.16,159.15,0.08]
[1752168961680,5.95445679,159.17,159.15,0.74]
[1752168961884,5.95445679,159.18,159.16,0.66]
[1752168962077,5.95445679,159.18,159.17,32.6]
[1752168962387,5.95445679,159.18,159.17,33.26]
[1752168962684,5.95445679,159.19,159.17,33.26]
[1752168962886,5.95445679,159.19,159.18,0.66]
[1752168964381,5.95445679,159.19,159.17,32.6]
[1752168964586,5.95445679,159.18,159.16,0.08]
[1752168964887,5.95445679,159.17,159.16,0.08]
[1752168965083,5.95445679,159.17,159.16,32.68]
[1752168967391,7.41978065,159.17,159.16,0.08]
[1752168967578,7.84626536,159.17,159.13,0.3]
[1752168967785,1.21180857,159.17,159.16,32.6]
[1752168968191,1.21180857,159.17,159.13,0.3]
[1752168968376,0.68,159.16,159.14,32.6]
[1752168968579,0.78542255,159.15,159.14,32.6]
[1752168968791,1.46542255,159.15,159.13,0.3]
[1752168969007,0.78542255,159.15,159.14,32.6]
[1752168969486,0.7853732,159.16,159.14,32.6]
[1752168969679,1.4653732,159.16,159.14,32.6]
[1752168970197,5.95445679,159.15,159.13,0.3]
[1752168970508,1.4653732,159.16,159.14,32.6]
[1752168970796,0.7853732,159.16,159.14,32.6]
[1752168971501,5.95445679,159.15,159.14,32.6]
[1752168972077,5.95445679,159.15,159.14,33.26]
[1752168972280,8.25415066,159.31,159.14,33.26]
[1752168972281,5.95445679,159.17,159.14,33.26]
[1752168972592,5.95445679,159.16,159.15,0.66]
[1752168973581,5.95445679,159.16,159.14,32.6]
[1752168973787,5.95445679,159.15,159.14,33.26]
[1752168973993,26.0,159.17,159.14,33.26]
[1752168974181,5.98445679,159.16,159.15,0.66]
[1752168974584,5.98445679,159.16,159.15,33.26]
[1752168975297,5.98445679,159.16,159.13,89.99]
[1752168975505,0.03,159.16,159.15,32.6]
[1752168976202,1.4953732,159.16,159.15,32.6]
[1752168976904,7.44982999,159.16,159.15,32.6]
[1752168977402,26.0,159.14,159.13,0.3]
[1752168977702,31.95445679,159.14,159.13,32.88]
[1752168977900,31.95445679,159.14,159.13,0.3]
[1752168977901,33.4199287,159.14,159.13,0.3]
[1752168978083,33.4199287,159.14,159.13,32.88]
[1752168978277,32.7399287,159.14,159.13,32.88]
[1752168978886,31.95445679,159.14,159.13,32.88]
[1752168979088,39.01539829,159.14,159.13,32.88]
[1752168979406,39.01539829,159.14,159.13,32.6]
[1752168980183,27.10648471,159.14,159.13,32.6]
[1752168980382,33.0609415,159.14,159.13,32.58]
[1752168982083,32.63445679,159.14,159.13,32.58]
[1752168982284,31.95445679,159.14,159.13,32.58]
[1752168982511,26.0,159.14,159.13,32.58]
[1752168982684,0.8153732,159.16,159.13,33.27]
[1752168982890,5.95445679,159.14,159.13,33.27]
[1752168983095,5.95445679,159.14,159.13,32.58]
[1752168984386,6.63445679,159.14,159.13,32.58]
[1752168984586,0.42648471,159.13,159.06,27.79]
[1752168984809,5.95445679,159.07,159.06,27.79]
[1752168985011,5.95445679,159.07,159.06,60.37]
[1752168985185,5.95445679,159.07,159.06,27.79]
[1752168985386,5.95445679,159.08,159.06,60.37]
[1752168985617,5.95445679,159.08,159.07,0.69]
[1752168987406,5.95445679,159.08,159.06,27.1]
[1752168987600,1.74994315,159.11,159.07,32.6]
[1752168987788,5.95445679,159.08,159.07,33.29]
[1752168988818,5.95445679,159.09,159.07,33.29]
[1752168988988,5.95445679,159.08,159.07,32.6]
[1752168989188,5.95445679,159.08,159.07,32.58]
[1752168989588,5.95445679,159.08,159.07,0.69]
[1752168989789,5.95445679,159.08,159.07,33.27]
[1752168990701,0.78562001,159.11,159.07,33.27]
[1752168990913,5.95445679,159.1,159.08,0.69]
[1752168991105,5.95445679,159.1,159.09,0.69]
[1752168991299,5.95445679,159.1,159.07,33.27]
[1752168991497,5.95445679,159.08,159.07,0.69]
[1752168991816,5.95445679,159.08,159.07,32.58]
[1752168992502,0.78562001,159.11,159.07,33.27]
[1752168992716,5.96910926,159.1,159.08,0.69]
[1752168992893,5.96910926,159.11,159.08,0.69]
[1752168993996,1.74974569,159.15,159.08,0.69]
[1752168994188,5.96910926,159.11,159.08,0.69]
[1752168994394,0.68,159.13,159.07,33.27]
[1752168994600,0.78557063,159.12,159.07,33.27]
[1752168994810,5.96910926,159.09,159.07,32.58]
[1752168995016,5.96910926,159.08,159.07,33.27]
[1752168997027,5.96910926,159.08,159.07,32.58]
[1752168997519,5.96910926,159.09,159.07,33.27]
[1752168997817,0.78562001,159.11,159.08,0.69]
[1752168998024,0.78562001,159.11,159.09,32.58]
[1752168998816,0.78557063,159.12,159.09,32.58]
[1752168998995,5.96910926,159.1,159.09,32.58]
[1752169000216,5.96910926,159.1,159.08,0.69]
[1752169000416,5.96910926,159.09,159.06,26.0]
[1752169000625,5.96910926,159.1,159.09,0.69]
[1752169000918,5.96910926,159.1,159.09,33.27]
[1752169002825,5.96910926,159.1,159.09,32.58]
[1752169003605,5.96910926,159.1,159.09,33.27]
[1752169003899,0.14216157,159.15,159.09,33.27]
[1752169004230,5.96910926,159.14,159.12,26.0]
[1752169004530,5.96910926,159.16,159.13,33.23]
[1752169004708,5.96910926,159.16,159.14,32.58]
[1752169005025,0.7852252,159.19,159.15,0.65]
[1752169005326,1.4852252,159.19,159.16,32.58]
[1752169005531,0.7,159.18,159.16,32.58]
[1752169005737,1.06954834,159.19,159.16,32.58]
[1752169005738,1.48532386,159.17,159.16,32.58]
[1752169005942,1.06954834,159.19,159.16,32.58]
[1752169006103,1.4852252,159.19,159.16,32.58]
[1752169006304,0.7,159.18,159.16,32.58]
[1752169006520,5.96910926,159.17,159.16,32.58]
[1752169007118,0.7852252,159.19,159.16,32.58]
[1752169007314,5.96910926,159.17,159.16,32.58]
[1752169008822,6.75443312,159.17,159.11,89.0]
[1752169009034,5.96910926,159.14,159.12,32.58]
[1752169009209,5.96910926,159.14,159.12,33.23]
[1752169009410,5.96910926,159.14,159.13,0.65]
[1752169011437,1.76954834,159.19,159.13,0.65]
[1752169011642,1.76954834,159.19,159.14,32.58]
[1752169011811,5.96910926,159.15,159.14,32.58]
[1752169012012,5.96910926,159.15,159.14,33.23]
[1752169012936,0.7852252,159.19,159.14,33.23]
[1752169013138,0.7852252,159.19,159.15,0.65]
[1752169013349,0.7852252,159.19,159.16,32.58]
[1752169013830,0.7852252,159.19,159.16,33.23]
[1752169014430,5.96910926,159.17,159.16,33.23]
[1752169014733,5.96910926,159.17,159.16,32.58]
[1752169015136,5.96910926,159.17,159.16,33.23]
[1752169017628,5.96910926,159.17,159.14,26.0]